Cogmind - Beta 13 @@@ ROGUE MODE // 2024.05.01 @ 11:59:49 Player: BionicBot Result: Destroyed by L-31 Rogue with Katana Performance ------------- Evolutions (1) 500 Regions Visited (2) 400 Robots Destroyed (62) 310 Value Destroyed (1258) 1258 Prototype IDs (2) 40 Alien Tech Used (0) 0 Bonus (186) 186 TOTAL SCORE: 2694 Bonus ------- High Alert Combat Kills 186 Cogmind --------- Core Integrity 0/400 Matter 244/300 Energy 8/100 System Corruption 0% Temperature Cool (52) Movement Core (200) Ox3 Location -9/Materials Parts ------- > --- POWER (1) -------- (None) > --- PROPULSION (4) --- (None) > --- UTILITY (2) ------ Medium Storage Unit > --- WEAPON (2) ------- Small Laser > --- INVENTORY (10) --- Improved Ion Engine Improved Ion Engine Transport Network Coupler Improved Targeting Computer Authchip [R/Combat] Authchip [Weapon] Peak State ------------ > --- POWER ------------ Light Ion Engine > --- PROPULSION ------- Aluminum Leg Aluminum Leg Aluminum Leg Improved Aluminum Leg > --- UTILITY ---------- Heat Sink Medium Storage Unit > --- WEAPON ----------- Rocket Launcher Rocket Launcher > --- INVENTORY -------- Aluminum Leg Aluminum Leg Aluminum Leg Transport Network Coupler Authchip [R/Combat] Authchip [Weapon] Medium Laser Assault Rifle Light Assault Rifle [Rating: 13] Favorites ----------- Power Improved Ion Engine Engine Improved Ion Engine Power Core Light Nuclear Core Propulsion Aluminum Leg Leg Aluminum Leg Utility Heat Sink Device Heat Sink Storage Small Storage Unit Weapon Assault Rifle Energy Gun Beam Rifle Ballistic Gun Assault Rifle Launcher Rocket Launcher Build | -11 -10 -9 ------- Run | Yrd Mat Mat Slots Evolved 2 | . . 2 Power . | . . . Propulsion 2 | . . 2 Utility . | . . . Weapon . | . . . Parts Attached 46 | 7 13 26 Power 9 | 1 3 5 Engine 8 | 1 2 5 Core 1 | . 1 . Reactor . | . . . Propulsion 16 | 2 6 8 Treads . | . . . Leg 16 | 2 6 8 Wheel . | . . . Hover . | . . . Flight . | . . . Utility 3 | 1 1 1 Device 1 | . 1 . Storage 2 | 1 . 1 Processor . | . . . Hackware . | . . . Protection . | . . . Artifact . | . . . Weapon 18 | 3 3 12 Energy Gun 9 | 2 1 6 Energy Cannon . | . . . Ballistic Gun 7 | 1 2 4 Ballistic Cannon . | . . . Launcher 2 | . . 2 Special Weapon . | . . . Impact Weapon . | . . . Slashing Weapon . | . . . Piercing Weapon . | . . . Special Melee Weapon . | . . . Unidentified Prototypes . | . . . Parts Lost 19 | . 3 16 Power 4 | . 2 2 Propulsion 7 | . . 7 Utility 1 | . . 1 Weapon 7 | . 1 6 Highest Loss Streak 9 | . 2 9 To Critical Strikes . | . . . Average Slot Usage (%) 89 | . 94 86 Engine 8 | . 7 8 Core 2 | . 5 . Leg 33 | . 28 36 Device 9 | . 12 8 Storage 12 | . 14 11 Energy Gun 7 | . 8 6 Ballistic Gun 11 | . 17 8 Launcher 3 | . . 5 Naked Turns . | . . . Heaviest Build 24 | 14 16 24 Greatest Support 43 | 20 20 43 Greatest Overweight (x) 7 | . . 7 Average Overweight (x) . | . . . Largest Inventory Capacity 10 | 8 8 10 Average Capacity 8 | 7 8 9 Most Carried 10 | 4 8 10 Average Carried 6 | . 5 7 Final Capacity 10 | 8 8 10 Final Carried 8 | 1 8 6 Class Distribution -------------------- 84% | Scavenger-Mutant 15% | Mutant Dominant Class ---------------- Scavenger-Mutant | -10/Materials Scavenger-Mutant | -9/Materials Resources | -11 -10 -9 ----------- Run | Yrd Mat Mat Matter Collected 1115 | 222 336 557 Remotely . | . . . Salvage Created 1417 | . 593 824 Parts 105 | . 39 66 Haulers Intercepted 3 | . 1 2 Recyclers Shooed 1 | . . 1 Parts Field Recycled . | . . . Retrieved Matter . | . . . Parts Self-Destructed . | . . . Prevented . | . . . Kills | -11 -10 -9 ------- Run | Yrd Mat Mat Combat Hostiles Destroyed 38 | . 14 24 Guns 25 | . 13 12 AOE 13 | . 1 12 Classes Destroyed 11 | . 7 4 Worker 6 | . 2 4 Builder 4 | . 1 3 Hauler 3 | . 1 2 Recycler 3 | . . 3 Mechanic 1 | . . 1 Operator 1 | . 1 . Watcher 6 | . 1 5 Swarmer 16 | . 3 13 Grunt 15 | . 11 4 Duelist 1 | . . 1 Sentry 6 | . . 6 Best Kill Streak 16 | . 7 16 Combat Bots Only 7 | . 4 7 Max Kills in Single Turn 6 | . 4 6 Gunslinging . | . . . Exploded 3 | . 1 3 Melee . | . . . Uniques/NPCs Destroyed . | . . . Combat | -11 -10 -9 -------- Run | Yrd Mat Mat Hostile Shots Fired 209 | . 84 125 Missed 49 | . 20 29 Damage Taken 2538 | . 875 1663 Core 667 | . 244 423 Absorbed by Shields . | . . . Core Remaining (%) 51 | 100 2 . Volleys Fired 128 | 1 54 73 Largest 2 | 2 2 2 Hottest 105 | 90 85 105 Shots Fired 219 | 2 90 127 Gun 189 | 2 90 97 Cannon . | . . . Launcher 30 | . . 30 Special . | . . . Kinetic 119 | . 65 54 Thermal 69 | 1 25 43 Explosive 30 | . . 30 Electromagnetic 1 | 1 . . Robot Hit Streak 11 | 1 6 11 Robot Miss Streak 5 | 1 2 5 Penetration Max . | . . . Secondary Targets 6 | . 4 2 Max Gunslinging Chain 1 | . 1 1 Shots Hit Robots 148 | 1 60 87 Core Hits 102 | . 32 70 Critical Kills . | . . . Critical Parts Destroyed 1 | . 1 . Critical Strikes 4 | . 2 2 Burn 3 | . 1 2 Destroy 1 | . 1 . Melee Attacks . | . . . Impact . | . . . Slashing . | . . . Piercing . | . . . Sneak Attacks . | . . . Combat Hostiles . | . . . Follow-up Attacks . | . . . Damage Inflicted 4118 | 12 1254 2852 Guns 1661 | 12 748 901 Cannons . | . . . Explosions 2431 | . 500 1931 Melee . | . . . Ramming 26 | . 6 20 Kinetic 987 | . 527 460 Thermal 797 | . 221 576 Explosive 2296 | . 500 1796 Electromagnetic 12 | 12 . . Impact . | . . . Slashing . | . . . Piercing . | . . . Highest Corruption . | . . . Average Corruption . | . . . Corruption Purged . | . . . Corruption Blocked . | . . . Overload Shots . | . . . Overflow Damage 247 | . 82 165 Projectiles . | . . . Explosions 247 | . 82 165 Melee . | . . . Knockbacks . | . . . Impact . | . . . Kinetic . | . . . Secondary . | . . . Self-Inflicted Damage 462 | . 174 288 Shots 10 | . 2 8 Rammed . | . . . Targets Rammed 6 | . 3 3 Kicked 6 | . 3 3 Crushed . | . . . Highest Temperature 127 | 30 127 108 Average Temperature 42 | 17 47 39 Received Heat Transfer 690 | . 345 345 Siege Activations . | . . . Robots Corrupted . | . . . Combat Hostiles . | . . . Parts Fried . | . . . Impact Corruptions . | . . . Robots Melted . | . . . Combat Hostiles . | . . . Parts Melted 4 | . 2 2 Heat Transferred 1851 | . 703 1148 Parts Sabotaged . | . . . Parts Stolen . | . . . Parts Stripped . | . . . Power Chain Reactions . | . . . Alert | -11 -10 -9 ------- Run | Yrd Mat Mat Peak Influence 780 | . 373 780 Initial 98 | . . 98 Average 383 | . 156 539 Maximum Alert Level 3 | . 1 3 Low Security (%) 40 | 100 73 17 Level 1 14 | . 26 8 Level 2 33 | . . 54 Level 3 11 | . . 19 Level 4 . | . . . Level 5 . | . . . High Security . | . . . Max Security . | . . . Squads Dispatched 5 | . 3 2 Investigation 3 | . 2 1 Extermination . | . . . Reinforcement 1 | . 1 . Assault 1 | . . 1 Garrison . | . . . Intercept . | . . . Searches Triggered . | . . . Construction Impeded . | . . . Haulers Reinforced . | . . . Active Scanning Responses . | . . . Cargo Convoy Interrupts . | . . . Stealth | -11 -10 -9 --------- Run | Yrd Mat Mat Distress Signals 2 | . 1 1 Communications Jammed . | . . . Distress Signals . | . . . Times Spotted 52 | . 22 30 Peak Tracking Total 5 | . 4 5 Tactical Retreats 1 | . 1 . Traps | -11 -10 -9 ------- Run | Yrd Mat Mat Traps Triggered 5 | . 2 3 Indirectly . | . . . Trap Hack Attempts . | . . . Triggered . | . . . Disarmed 4 | . 4 . Reprogrammed . | . . . Reused . | . . . Traps Extracted . | . . . Installed . | . . . Triggered . | . . . Machines | -11 -10 -9 ---------- Run | Yrd Mat Mat Machines Disabled 8 | . 2 6 Max in Single Turn 4 | . 1 4 Machines Repaired . | . . . Machines Dismantled . | . . . Machines Sabotaged . | . . . Overloaded Fab Kills . | . . . Hacking | -11 -10 -9 --------- Run | Yrd Mat Mat Machines Accessed 5 | . 3 2 Terminals 4 | . 3 1 Fabricators . | . . . Repair Stations 1 | . . 1 Recycling Units . | . . . Scanalyzers . | . . . Garrison Access . | . . . Total Hacks 15 | . 9 6 Successful 7 | . 5 2 Failed 8 | . 4 4 Catastrophic 1 | . . 1 Database Lockouts . | . . . Manual . | . . . Terminals 13 | . 9 4 Fabricators . | . . . Repair Stations 2 | . . 2 Recycling Units . | . . . Scanalyzers . | . . . Garrison Access . | . . . Terminal Hacks 7 | . 5 2 Prototype ID Bank 1 | . 1 . Branch Access Points 1 | . . 1 Scanalyzer Index 1 | . . 1 Locate Traps 2 | . 2 . Disarm Traps 1 | . 1 . Zone Layout 1 | . 1 . Fabricator Hacks . | . . . Repair Station Hacks . | . . . Recycling Unit Hacks . | . . . Scanalyzer . | . . . Garrison Access Hacks . | . . . Unauthorized Hacks . | . . . Terminals . | . . . Fabricators . | . . . Repair Stations . | . . . Recycling Units . | . . . Scanalyzers . | . . . Garrison Access . | . . . Data Cores Recovered . | . . . Used . | . . . Hacking Detections 4 | . 2 2 Full Trace Events 1 | . 1 . Feedback Events . | . . . Feedback Blocked . | . . . Robot Schematics Acquired . | . . . Robots Built . | . . . Authchips . | . . . Time . | . . . Total Robot Build Rating . | . . . Part Schematics Acquired . | . . . Parts Built . | . . . Authchips . | . . . Time . | . . . Total Part Build Rating . | . . . Parts Repaired . | . . . Time . | . . . Parts Recycled . | . . . Recycled Matter . | . . . Retrieved Matter . | . . . Retrieved Components . | . . . Parts Scanalyzed . | . . . Part Schematics Acquired . | . . . Parts Damaged . | . . . Bothacking | -11 -10 -9 ------------ Run | Yrd Mat Mat Used RIF Installer . | . . . Robots Hacked . | . . . Non-combat . | . . . Combat . | . . . Robot Hacks Applied . | . . . Relay Couplers Released . | . . . Fabnet Peak Effective % . | . . . Robots Rewired . | . . . Allies Hacked . | . . . Hacks Repelled . | . . . Allies | -11 -10 -9 -------- Run | Yrd Mat Mat Total Allies . | . . . Largest Group . | . . . Highest-Rated Group . | . . . Highest-Rated Ally . | . . . Total Orders . | . . . Ally Attacks . | . . . Total Damage . | . . . Kills . | . . . Allies Corrupted . | . . . Allies Melted . | . . . Intel | -11 -10 -9 ------- Run | Yrd Mat Mat Robot Analysis Total . | . . . Derelict Logs Recovered . | . . . Drone Launches . | . . . Drone Recoveries . | . . . Exploration | -11 -10 -9 ------------- Run | Yrd Mat Mat Turns Passed 1449 | 60 507 882 Spaces Moved 774 | 34 266 474 Core 19 | 7 . 12 Treads . | . . . Legs 755 | 27 266 462 Wheels . | . . . Hover . | . . . Flight . | . . . Fastest Speed 50 | 50 120 120 Average Speed 125 | 105 120 130 Slowest Speed 400 | 120 120 400 Overloaded Moves . | . . . Propulsion Burnouts . | . . . Robots Hopped . | . . . Cave-ins Triggered . | . . . Exploration Rate (%) 30 | 4 39 49 Regions Visited 2 Branch Regions . Pre-discovered Areas . | . . . Known Exits Taken . | . . . Unknown Exits Taken 2 | 1 1 . Scrap Searched . | . . . Spaces Dug . | . . . Terrain Destroyed 266 | . 51 215 Melee . | . . . Projectile . | . . . AOE 266 | . 51 215 Terrain Rammed . | . . . Walls Destroyed . | . . . Machines Disabled . | . . . Actions | -11 -10 -9 --------- Run | Yrd Mat Mat Total 1026 | 55 362 609 Wait 54 | 9 23 22 Move 772 | 33 265 474 Hop . | . . . Pick Up 8 | 4 1 3 Fast Attach 16 | 3 4 9 Attach 15 | 4 . 11 Detach 5 | 1 . 4 Swap 15 | . 9 6 Drop 7 | . 3 4 Fire 128 | 1 54 73 Melee . | . . . Ram . | . . . Kick 6 | . 3 3 Crush . | . . . Escape Stasis . | . . . Rewire . | . . . Trap . | . . . Miscellaneous . | . . . Route ------- -11/Scrapyard -10/Materials (discovered 2 exits: *Mat / [*Min]) -9/Materials (discovered 3 exits: [*Mat] / *Min x2) History --------- Turn | Location | Event 2 | -11/Scrapyard | Met Revision 17 4 | -11/Scrapyard | Discovered new exit (range 16) 61 | -11/Scrapyard | Entered Materials 288 | -10/Materials | Discovered new exit (range 7) 382 | -10/Materials | Core integrity fell below 50% 474 | -10/Materials | Build established: Scavenger-Mutant 494 | -10/Materials | Discovered new exit (range 20) 513 | -10/Materials | Core integrity fell below 20% 568 | -10/Materials | Entered another Materials area 568 | -9/Materials | Evolved 2 slots: Propulsion x2 801 | -9/Materials | Discovered new exit (range 15) 834 | -9/Materials | Destroyed 7 combat bots 963 | -9/Materials | Lost 9 parts (1p4n4w) 1040 | -9/Materials | Discovered new exit (range 6) 1087 | -9/Materials | Identified exit to Mines 1090 | -9/Materials | Discovered new exit (range 16) 1368 | -9/Materials | First assault squad dispatched 1382 | -9/Materials | Core integrity fell below 50% 1434 | -9/Materials | Core integrity fell below 20% 1450 | -9/Materials | Destroyed by L-31 Rogue with Katana Last Messages --------------- 01384_ R-06 Scavenger collects Lgt. Ion Engine. 01385_ U-05 Engineer builds a Wall. 01398_ C-30 ARC bursts open, deploying its payload. 01398_ G-47 Trooper unfolds itself. 01398_ L-31 Rogue unfolds itself. 01398_ G-34 Mercenary unfolds itself. 01398_ I-25 Savior unfolds itself. 01404_ Kicked K-01 Serf out of the way. 01410_ Kicked R-06 Scavenger out of the way. 01422_ G-47 Trooper destroyed. 01422_ Switching to secondary target: L-31 Rogue. 01426_ Imp. Ion Engine severed. 01428_ Hvy. Assault Rifle destroyed. 01433_ Aluminum Leg severed. 01435_ L-31 Rogue destroyed. 01440_ Aluminum Leg severed. 01443_ Spread Laser severed. 01445_ Beam Rifle severed. 01446_ K-01 Serf collects debris. 01448_ Lgt. Assault Rifle destroyed. Map ----- +----------------------------------------------------+ | | | | | | | | | | | | | | | | | | | | | | | | | | | | | ???????????????????###############???????????????? | | ???????????????????# """ # #???????????????? | | ???????????????????# "Y" # "" #???????????????? | | ???????????????????# # """#???????????????? | | ???????????????????# # R"#???????????????? | | ?#######???????????# # """#???????????????? | | ## #????????????? # #???????????????? | | ! ########?#######+######+####??????????????? | | => # #?# #??????????????? | | ! # """ #?# = #??????????????? | | ## # """ "#?# [/=![ #??????????????? | | ### ## """ T#?# #####@######+#####???????????? | | # ## "#?# #???#l#?# #???????????? | | " # ## #?# #???#[#?# """""#???????????? | | " + ###+####### #???#%### """""#???????????? | | " # #???# ## ! """""#???????????? | | # #???# ### """""#???????????? | | " # #???# #?# """"?????????????? | | " # ###+###########???# #?# """"?????????????? | | " # # #??????????# #?# """"?????????????? | | # #""" #??#########+#?# ?????????????? | | ### #""" #??# #?###########??????????? | | ??# #""" #??# """ #?# #??????????? | | ??# # #??# """"" #?# #??????????? | | ??# # #??# """"" #?# #??????????? | | ??# ########??# """"""### #??????????? | | ### #?????????# """"%" #####+####??????????? | | # # #?????????# !! / ???????? | | ### ##????????# * %* ####??????????? | | ##????????#####+#####!= #?????????????? | | = ! ##???????????# #?????????????? | | ##???????????# ##/##########?????????????? | | #### ###???????????+ # ????????????????????? | | ## # #???????????# # ????????????????????? | | # # ! #???????????# = # ???????????????????? | | # # ! #???????????# # ???????????????????? | +----------------------------------------------------+ Best States ------------- Heat Dissipation 38 Energy Generation 14 Energy Capacity 265 Matter Stores 300 Matter Capacity 300 Sight Range 16 Terrain Scan Density 10 Evasion (%) 55 Authchip Count 2 Item Schematics ----------------- None Robot Schematics ------------------ None Fabricated ------------ Nothing Alien Tech Used ----------------- None Achievements -------------- None Challenges ------------ None Game ------ Seed SuspensionQuantumMount Manual? 0 Play Time 00:14:41 Cumulative 21.6 hours Start 2024.05.01 @ 11:44:58 End 2024.05.01 @ 11:59:49 Sessions 1 Manual Loads 0 Difficulty Rogue Special Mode None Game No. 19 Rogue 19 Adventurer 0 Explorer 0 Win Type - Total 0 Types 0/0/0/0/0/0/0/0/0 Lore% 4 Gallery% 21 Achievement% 17 Wizard Run 0 Options --------- Layout 0 ASCII 0 Keyboard 1 Movement Numpad Keybinds 0 Fullscreen 2 Font 18/SmallcapsGlow Map View 76x50 Zoom Use 0% Tactical HUD 1 Map Filters NONE Filters NONE Steam 1 RUN: f251035c-295e-415d-9ec0-edcd10b0c410